{"text_format":"1","workbook":"xlsx","n_sheets":2,"sheets":["Formulario","Datos"],"not_rendered":{"charts":0,"images":1,"macros":1,"external_links":0,"defined_names":1,"comments":1,"pivot_tables":0},"unopened":[],"bounds":{"document_bytes":16777216,"sheet_cells":100000,"rows_first":2000,"rows_last":500,"rows_between":2000,"halvings":0,"cell_chars":16384,"cell_head_chars":4096},"cells_cut":0,"cells_raw":0,"read":"whole","date_system":"1900"}

{"sheet":"Formulario","index":0,"n_rows":241,"n_cols":26,"rows_kept":241,"cut":false,"hidden":false,"merged":[[130,20,130,23],[131,20,131,23],[132,20,132,23],[133,20,133,23],[103,22,103,24],[104,22,104,24],[143,22,143,23],[120,24,120,25],[204,1,204,25],[122,20,123,23],[130,16,130,19],[131,16,131,19],[132,16,132,19],[133,16,133,19],[203,11,203,13],[196,14,196,16],[197,14,197,16],[198,14,198,16],[199,14,199,16],[200,14,200,16],[201,14,201,16],[202,14,202,16],[203,14,203,16],[202,1,202,7],[86,1,86,25],[122,16,123,19],[124,16,124,19],[124,20,124,23],[125,16,125,19],[126,16,126,19],[127,16,127,19],[128,16,128,19],[129,16,129,19],[125,20,125,23],[126,20,126,23],[127,20,127,23],[128,20,128,23],[129,20,129,23],[128,1,128,2],[128,3,128,4],[128,5,128,8],[128,9,128,12],[128,13,128,15],[101,15,101,19],[102,15,102,19],[126,1,126,2],[126,3,126,4],[126,5,126,8],[76,5,76,11],[77,5,77,11],[78,5,78,11],[79,5,79,11],[80,5,80,11],[81,5,81,11],[73,20,73,22],[74,20,74,22],[75,20,75,22],[76,20,76,22],[77,20,77,22],[78,20,78,22],[79,20,79,22],[80,20,80,22],[81,20,81,22],[76,12,76,16],[76,17,76,19],[77,12,77,16],[77,17,77,19],[78,12,78,16],[78,17,78,19],[79,12,79,16],[79,17,79,19],[9,3,9,7],[9,13,9,24],[19,5,19,7],[197,8,197,10],[198,8,198,10],[199,8,199,10],[200,8,200,10],[93,9,94,11],[95,9,95,11],[96,9,96,11],[97,9,97,11],[98,9,98,11],[99,9,99,11],[100,9,100,11],[101,9,101,11],[102,9,102,11],[103,9,103,11],[104,9,104,11],[33,4,33,18],[35,4,35,24],[37,4,37,24],[13,12,13,24],[19,16,19,24],[73,5,73,11],[25,5,25,24],[27,5,27,24],[23,5,23,24],[11,3,11,24],[201,8,201,10],[202,8,202,10],[203,8,203,10],[186,1,186,2],[186,3,186,4],[186,5,186,7],[186,8,186,10],[186,11,186,13],[186,14,186,15],[186,16,186,17],[186,18,186,25],[190,1,190,2],[190,3,190,4],[190,5,190,7],[190,8,190,10],[190,11,190,13],[190,14,190,15],[190,16,190,17],[190,18,190,25],[74,5,74,11],[201,1,201,7],[200,1,200,7],[196,11,196,13],[197,11,197,13],[198,11,198,13],[199,11,199,13],[200,11,200,13],[201,11,201,13],[202,11,202,13],[196,8,196,10],[196,1,196,7],[197,1,197,7],[198,1,198,7],[199,1,199,7],[203,1,203,7],[150,10,150,14],[160,11,160,25],[181,14,182,15],[181,16,182,17],[181,11,182,13],[183,11,183,13],[184,11,184,13],[185,11,185,13],[191,11,191,13],[192,11,192,13],[185,1,185,2],[191,1,191,2],[185,3,185,4],[154,1,154,4],[154,5,154,8],[154,9,154,12],[154,13,154,16],[154,17,154,18],[154,21,154,23],[155,1,155,4],[155,5,155,8],[155,9,155,12],[155,13,155,16],[71,20,72,22],[90,8,91,25],[93,15,94,19],[95,15,95,19],[96,15,96,19],[97,15,97,19],[98,15,98,19],[99,15,99,19],[100,15,100,19],[74,23,74,25],[71,12,72,16],[71,17,72,19],[73,12,73,16],[73,17,73,19],[74,12,74,16],[74,17,74,19],[75,12,75,16],[75,17,75,19],[73,23,73,25],[80,23,80,25],[81,23,81,25],[82,20,82,22],[83,20,83,22],[75,5,75,11],[126,9,126,12],[126,13,126,15],[127,1,127,2],[127,3,127,4],[127,5,127,8],[127,9,127,12],[127,13,127,15],[124,1,124,2],[124,3,124,4],[124,5,124,8],[124,9,124,12],[124,13,124,15],[125,1,125,2],[125,3,125,4],[125,5,125,8],[125,9,125,12],[125,13,125,15],[129,1,129,2],[129,3,129,4],[129,5,129,8],[129,9,129,12],[129,13,129,15],[130,1,130,2],[130,3,130,4],[130,5,130,8],[130,9,130,12],[130,13,130,15],[131,1,131,2],[131,3,131,4],[131,5,131,8],[131,9,131,12],[131,13,131,15],[132,1,132,2],[132,3,132,4],[132,5,132,8],[132,9,132,12],[132,13,132,15],[114,1,114,2],[114,3,114,4],[114,5,114,8],[114,9,114,12],[114,13,114,14],[109,1,109,2],[109,3,109,4],[109,5,109,8],[109,9,109,12],[109,13,109,14],[110,1,110,2],[110,3,110,4],[110,5,110,8],[110,9,110,12],[110,13,110,14],[113,3,113,4],[113,5,113,8],[113,9,113,12],[113,13,113,14],[99,1,99,2],[99,3,99,4],[99,5,99,8],[99,25,99,26],[99,12,99,14],[99,20,99,21],[115,1,115,2],[115,3,115,4],[115,5,115,8],[115,9,115,12],[115,13,115,14],[111,1,111,2],[111,3,111,4],[111,5,111,8],[111,9,111,12],[111,13,111,14],[112,1,112,2],[112,3,112,4],[112,5,112,8],[112,9,112,12],[112,13,112,14],[113,1,113,2],[103,25,103,26],[102,25,102,26],[98,20,98,21],[95,20,95,21],[96,1,96,2],[96,3,96,4],[96,5,96,8],[96,25,96,26],[96,12,96,14],[96,20,96,21],[97,3,97,4],[97,5,97,8],[95,22,95,24],[96,22,96,24],[97,22,97,24],[98,22,98,24],[225,13,230,22],[231,13,231,22],[234,1,239,10],[234,13,239,22],[240,1,240,10],[240,13,240,22],[210,8,210,9],[231,1,231,10],[225,1,230,10],[222,9,222,10],[212,8,212,23],[210,22,210,23],[218,1,218,25],[219,1,219,25],[220,1,220,25],[208,8,208,9],[214,8,214,23],[210,14,210,16],[93,20,94,21],[93,12,94,14],[104,12,104,14],[104,20,104,21],[133,5,133,8],[133,9,133,12],[133,13,133,15],[122,5,123,8],[117,13,117,14],[103,5,103,8],[103,12,103,14],[103,20,103,21],[102,5,102,8],[144,22,144,23],[152,10,152,11],[156,19,156,20],[156,21,156,23],[144,10,144,11],[137,6,137,23],[144,6,144,8],[141,6,141,9],[68,0,69,25],[7,6,7,7],[7,13,7,15],[13,6,13,7],[44,4,44,6],[44,10,44,12],[17,22,17,24],[62,6,62,8],[17,10,17,12],[17,16,17,18],[58,16,58,18],[31,10,31,12],[31,16,31,18],[31,22,31,24],[48,4,48,22],[42,4,42,24],[44,17,44,24],[50,4,50,6],[50,12,50,14],[50,20,50,22],[52,4,52,22],[33,22,33,24],[56,6,56,8],[21,5,21,24],[72,1,72,2],[72,3,72,4],[73,1,73,2],[60,16,60,18],[62,16,62,18],[64,16,64,18],[167,6,167,23],[165,6,165,7],[93,25,94,26],[104,25,104,26],[76,23,76,25],[82,23,82,25],[75,23,75,25],[154,19,154,20],[157,21,157,23],[157,19,157,20],[143,18,143,20],[144,18,144,20],[157,13,157,16],[71,1,71,4],[71,23,72,25],[60,6,60,8],[71,5,72,11],[64,1,65,4],[157,1,157,4],[58,6,58,8],[31,4,31,6],[77,23,77,25],[123,1,123,2],[123,3,123,4],[133,1,133,2],[133,3,133,4],[142,6,142,8],[142,10,142,11],[139,6,139,23],[122,9,123,12],[122,13,123,15],[117,9,117,12],[79,23,79,25],[78,23,78,25],[103,1,103,2],[103,3,103,4],[102,1,102,2],[116,1,116,2],[116,3,116,4],[117,5,117,8],[107,5,108,8],[107,9,108,12],[142,22,142,23],[156,1,156,4],[156,5,156,8],[156,9,156,12],[156,13,156,16],[156,17,156,18],[145,10,145,11],[143,10,143,11],[155,21,155,23],[145,18,145,20],[145,22,145,23],[146,6,146,8],[146,10,146,11],[146,18,146,20],[146,22,146,23],[97,25,97,26],[93,5,94,8],[93,22,94,24],[99,22,99,24],[100,22,100,24],[101,22,101,24],[102,22,102,24],[73,3,73,4],[80,3,80,4],[80,12,80,16],[80,17,80,19],[102,12,102,14],[101,5,101,8],[101,25,101,26],[101,12,101,14],[95,5,95,8],[95,25,95,26],[95,12,95,14],[100,25,100,26],[97,20,97,21],[98,3,98,4],[98,5,98,8],[98,25,98,26],[98,12,98,14],[74,1,74,2],[74,3,74,4],[75,1,75,2],[75,3,75,4],[76,1,76,2],[76,3,76,4],[79,1,79,2],[79,3,79,4],[77,1,77,2],[77,3,77,4],[78,1,78,2],[78,3,78,4],[182,1,182,2],[183,3,183,4],[158,19,158,20],[184,3,184,4],[181,8,182,10],[183,8,183,10],[184,8,184,10],[175,2,176,24],[181,18,182,25],[183,18,183,25],[184,18,184,25],[184,1,184,2],[181,1,181,4],[182,3,182,4],[185,18,185,25],[191,18,191,25],[183,14,183,15],[184,14,184,15],[185,14,185,15],[191,14,191,15],[183,16,183,17],[184,16,184,17],[185,16,185,17],[191,16,191,17],[189,18,189,25],[191,5,191,7],[187,1,187,2],[187,3,187,4],[188,1,188,2],[188,3,188,4],[189,1,189,2],[189,3,189,4],[189,14,189,15],[189,16,189,17],[191,3,191,4],[192,5,192,7],[185,8,185,10],[191,8,191,10],[192,8,192,10],[192,18,192,25],[192,14,192,15],[192,16,192,17],[178,5,178,10],[184,5,184,7],[187,5,187,7],[187,8,187,10],[187,11,187,13],[187,14,187,15],[187,16,187,17],[187,18,187,25],[188,5,188,7],[188,8,188,10],[188,11,188,13],[188,14,188,15],[188,16,188,17],[188,18,188,25],[189,5,189,7],[189,8,189,10],[189,11,189,13],[192,1,192,2],[192,3,192,4],[181,5,182,7],[183,5,183,7],[183,1,183,2],[185,5,185,7],[141,18,141,21],[100,1,100,2],[100,3,100,4],[100,5,100,8],[100,12,100,14],[100,20,100,21],[118,1,118,2],[118,3,118,4],[118,5,118,8],[118,9,118,12],[118,13,118,14],[107,1,107,4],[107,13,108,14],[108,1,108,2],[108,3,108,4],[102,20,102,21],[101,20,101,21],[116,5,116,8],[158,21,158,23],[142,18,142,20],[143,6,143,8],[155,17,155,18],[155,19,155,20],[93,1,93,4],[104,5,104,8],[103,15,103,19],[104,15,104,19],[158,1,158,4],[158,5,158,8],[158,9,158,12],[158,13,158,16],[158,17,158,18],[117,1,117,2],[117,3,117,4],[122,1,122,4],[104,1,104,2],[102,3,102,4],[101,1,101,2],[101,3,101,4],[95,1,95,2],[95,3,95,4],[97,1,97,2],[104,3,104,4],[157,5,157,8],[157,9,157,12],[157,17,157,18],[80,1,80,2],[94,1,94,2],[94,3,94,4],[98,1,98,2],[116,9,116,12],[116,13,116,14],[81,1,81,2],[81,3,81,4],[82,1,82,2],[82,3,82,4],[83,17,83,19],[81,12,81,16],[81,17,81,19],[82,12,82,16],[82,17,82,19],[97,12,97,14],[82,5,82,11],[90,5,90,6],[148,1,148,23],[145,6,145,8]]}
[]
["Formulario Único de Vinculación"]
[null,"Fecha de entrega"]
[null,null,null,null,"DD","MM","AAAA"]
[]
["1. DATOS DE LA EMPRESA"]
[]
[null,"Es tu primera cuenta en Banco Pichincha?",null,null,null,null,null,null,null,"Nacionalidad de la Empresa"]
[]
[null,"RUC",null,null,null,null,null,null,null,"Nombre comercial"]
[]
[null,"Razón social"]
[]
[null,"¿Pertenece a un grupo económico?",null,null,null,null,null,null,null,"Nombre del grupo"]
[]
[null,"Datos de la constitución de la empresa"]
[]
[null,"Fecha de constitución",null,null,null,null,null,null,null,"País",null,null,null,null,"Provincia",null,null,null,null,null,"Ciudad"]
[null,null,null,null,null,"DD","MM","AAAA"]
[null,"Tipo empresa",null,null,null,null,null,null,null,null,null,null,null,null,"Forma Jurídica     "]
[]
[null,"Objeto Social"]
[]
[null,"Sector"]
[]
[null,"Actividad económica principal"]
[]
[null,"Actividad económica secundaria"]
[]
[null,"Datos del domicilio"]
[]
[null,"País",null,null,null,null,null,null,"Provincia",null,null,null,null,null,"Cantón",null,null,null,null,null,"Ciudad"]
[]
[null,"Calle principal",null,null,null,null,null,null,null,null,null,null,null,null,null,null,null,null,null,null,"Número"]
[]
[null,"Calle secundaria"]
[]
[null,"Referencia"]
[]
[]
[null,"Contacto transaccional (confirmación de transacciones monetarias y envío de estados de cuenta)"]
[]
[null,"Nombres y Apellidos"]
[]
[null,"Celular",null,null,null,null,null,null,"Teléfono",null,null,null,null,null,"Correo electrónico"]
[]
[null,"Contacto para medios electrónicos"]
[]
[null,"Nombres y Apellidos"]
[]
[null,"Teléfono 1",null,null,null,null,null,null,null,"Teléfono 2",null,null,null,null,null,null,null,null,"Celular"]
[]
[null,"Correo electrónico"]
[]
[null,"Datos económicos (información anual)"]
[]
[null,"Capital suscrito y pagado"]
[]
[null,"Total de activos",null,null,null,null,null,null,null,null,null,null,"Total de pasivos"]
[]
[null,"Total de activos productivos",null,null,null,null,null,null,null,null,null,null,"Total patrimonio"]
[]
[null,"Ventas por año",null,null,null,null,null,null,null,null,null,null,"Egresos por año"]
[]
[null,"Fecha de datos financieros y patrimoniales",null,null,null,null,null,null,null,null,null,null,"Número de empleados"]
[null,null,null,null,null,null,"DD","MM","AAAA"]
[]
["2. INFORMACION DE LOS SOCIOS, ACCIONISTAS, CONSTITUYENTES O BENEFICIARIOS"]
["Detallar solo los accionistas/socios/beneficiarios que tienen participación igual o mayor al 6%. En caso que alguno de los accionistas sea una empresa, se deberá detallar sus propietarios finales (personas naturales). Deberán adjuntar también la nómina de Accionistas, Socios, Fundadores o Miembros."]
[]
[]
[null,"Identificación",null,null,null,"Apellidos o Razón Social",null,null,null,null,null,null,"Nombres",null,null,null,null,"Nacionalidad",null,null,"% Participación*",null,null,"Constituyente o Beneficiario**"]
[null,"Tipo",null,"Número"]
[]
[]
[]
[]
[]
[]
[]
[]
[]
[]
[null,null,null,null,null,null,null,null,null,null,null,null,null,null,null,null,null,"TOTAL",null,null,{"$f":"SUM(U74:W83)","v":0}]
[]
[null,"* De existir como accionistas Personas Jurídicas, con participación igual o mayor al 6%, deberá llenar el Anexo A."]
[null,"** Constituyente o Beneficiario: Solo llenar este campo para Fideicomisos. Si es Constituyente marcar en el casillero \"C\" y si es Beneficiario, marcar en el casillero \"B\" (sólo si se trata de un constituyente o beneficiario diferente de Banco Pichincha). Si el accionista, socio o miembro es una Persona JurÍdica o Soc. de Hecho/Consorcio/Cta. en Participación/Sociedad Accidental (y tiene RUC), completar el Anexo A."]
[]
["3. INFORMACION DEL REPRESENTANTE LEGAL"]
[]
[null,"Nro. de representantes legales",null,null,null,null,null,null,"Según el nro. de representantes legales indicado, completar las filas correspondientes. (Ejm: Si indico que es 1 representante legal solo llenar las filas que inician con 1. Si indico que son 2, llenar las filas que inician con 1 y 2. Y así sucesivamente)"]
[]
[null,"Datos Representante Legal"]
[null,"Identificación",null,null,null,"Apellidos",null,null,null,"Nombres",null,null,"Lugar y fecha de nacimiento",null,null,"Dirección domiciliaria",null,null,null,null,"Celular o télefono",null,"Correo electrónico",null,null,"Persona expuesta políticamente"]
[null,"Tipo",null,"Número"]
[1]
[2]
[3]
[4]
[5]
[6]
[7]
[8]
[9]
[10]
[]
[null,"Datos del Conyuge o Conviviente del o la Representante Legal"]
[null,"Identificación",null,null,null,"Apellidos",null,null,null,"Nombres",null,null,null,"Persona expuesta políticamente"]
[null,"Tipo",null,"Número"]
[1]
[2]
[3]
[4]
[5]
[6]
[7]
[8]
[9]
[10]
[]
[null,"¿Alguno de los representantes legales tiene un familiar o allegado políticamente expuesto, en primer grado de consanguinidad (padres, hijos, yernos, nueras o suegros)?"]
[null,"Detalla a continuación sus datos:"]
[null,"Identificación",null,null,null,"Apellidos",null,null,null,"Nombres",null,null,null,"Nacionalidad",null,null,"Fecha de nacimiento\n(DD/MM/AAAA)",null,null,null,"Lugar de nacimiento"]
[null,"Tipo",null,"Número"]
[1]
[2]
[3]
[4]
[5]
[6]
[7]
[8]
[9]
[10]
[]
["4. DATOS REQUERIDOS POR ENTES DE CONTROL"]
[]
[null,"Propósito de la cuenta"]
[]
[null,"Origen de fondos"]
[]
[null,"Ingresos mensuales",null,null,null,null,"Monto estimado/mes*",null,null,null,"Nro. trx./mes**",null,null,"Gastos mensuales",null,null,null,null,"Monto estimado/mes*",null,null,null,"Nro. trx./mes**"]
[null,"Depósitos",null,null,null,null,null,null,null,null,null,null,null,"Retiros"]
[null,"Transf. locales recibidas",null,null,null,null,null,null,null,null,null,null,null,"Transf. locales enviadas"]
[null,"Transf. recibidas del exterior",null,null,null,null,null,null,null,null,null,null,null,"Transf. enviadas al exterior"]
[null,"Depósitos a plazo",null,null,null,null,null,null,null,null,null,null,null,"Compra/Venta de divisas"]
[null,"Total ingresos mensuales",null,null,null,null,{"$f":"SUM(G143:I146)","v":0},null,null,null,{"$f":"SUM(K143:L146)","v":0},null,null,"Total gastos mensuales",null,null,null,null,{"$f":"SUM(S143:U146)","v":0},null,null,null,{"$f":"SUM(W143:X146)","v":0}]
[]
[null,"* Monto estimado/mes: Ingresar valores aproximados a los valores reales mensuales.\n**Nro. trx./mes: Ingresar el número de transacciones mensuales estimados o aproximados que realizarían por cada tipo de transacción."]
[]
[null,"Su empresa se encuentra supervisada por algún ente de control?"]
[]
[null,"Realiza transacciones en divisas internacionales?",null,null,null,null,null,null,null,null,null,null,null,"Sólo si su respuesta es Sí, completar el siguiente cuadro:"]
[]
[null,"Producto o servicio en divisas internacionales",null,null,null,"Tipo de producto\no servicio",null,null,null,"Identificación del producto\no servicio",null,null,null,"Entidad financiera",null,null,null,"Monto",null,"Ciudad",null,"País"]
[]
[]
[]
[null,null,null,null,null,null,null,null,null,null,null,null,null,null,null,null,null,null,null,null,null,null,null,null," "]
[]
[null,"¿Su empresa realiza alguna de las siguientes actividades controladas?*"]
[null,"*Si su empresa realiza alguna de las actividades controladas, deberá adjuntar el certificado de cumplimiento de la UAFE",null,null,null,null,null,null,null,null,null,null,null,null,null,"https://sislaft.uafe.gob.ec/sislaft/."]
[]
["5. AUTOCERTIFICACIÓN"]
[]
[null,"Es residente fiscal de Ecuador?",null,null,null,null,null,null,null,"--> Debe completar el Formulario de Autocertificación "]
[]
[null,"Tipo de entidad"]
[]
[null,"*ENF Activa (entidad no financiera con menos del 50% de sus ingresos brutos y menos del 50% de sus activos están produciendo o está manteniendo, pero producen ingresos pasivos)"]
[null,null,"a) Organización sin fines de lucro: fundaciones, corporaciones, etc."]
[null,null,"b) La sociedad cotiza en bolsa, indicar el nombre del mercado de valores establecido en el cual se comercializa regularmente las acciones."]
[null,null,"c) Es un organismo/entidad pública, Organización internacional, Banco Central."]
[null,null,"d) Es una sociedad holding perteneciente a un grupo no financiero.",null,null,null,null,null,null,null,null,null,null,null,null,null,null,null,null,null,null,null,null,null,null," "]
[null,"*ENF Pasiva (cualquier distinta a las anteriores; incluye: entidades de inversión y fideicomisos/fondos/acuerdos legales que no son fideicomisos)."]
[null,null,"Si hay una persona no residente fiscal en el Ecuador que posea o controle directa o indirectamente 25% o más de la entidad no financiera pasiva, complete el formulario de Autocertificación."]
[]
["6. CONDICIONES DE FIRMAS  (Estas condiciones aplican para el uso de la cuenta y chequera. Los firmantes de cheques deben residir en el Ecuador)"]
[]
[null,"Detalle de firmantes"]
[null,"Esta sección define las condiciones de uso de la cuenta y chequera, en donde puede registrar firmantes individuales y/o combinaciones de firmas conjuntas (tipo de firma)."]
[null,"Identificación",null,null,null,"Apellidos",null,null,"Nombres",null,null,"Tipo de Firma",null,null,"Condición\n(Ej: A, B, etc)",null,"Límite por operación (USD)",null,"Observaciones"]
[null,"Tipo",null,"Número"]
[]
[]
[]
[]
[]
[]
[]
[]
[]
[]
[]
[null,"Condiciones de Firma Conjunta"]
[null,"Defina las combinaciones de firmas requeridas para autorizar operaciones según el monto:"]
[null,"Combinación de firmantes*\n(Ej: Juan+Ana, Carlos+Pablo, etc)",null,null,null,null,null,null,"Condición conjunta*\n(Ej: A+B, A+C, etc)",null,null,"Monto Desde\n(USD)",null,null,"Monto Hasta\n(USD)"]
[]
[]
[]
[]
[]
[]
[]
[null,"*Puede establecer combinaciones específicas de firmantes (Juan+Ana) o condiciones de firmas conjuntas (A+B). En caso de aplicar solo condiciones conjuntas, por ejemplo: si colocamos A+B significaría que una persona con la condición A deberá firmar junto con otra persona con la condición B (ambos deben estar registrados en el cuadro anterior), para autorizar las operaciones detalladas en este cuadro dentro de los montos mínimos y máximos indicados."]
[]
["8. PRODUCTOS Y SERVICIOS"]
[]
[null,"Cuenta solicitada",null,null,"Tipo de cuenta"]
[]
[null,"Chequera",null,null,"Requiere chequera?",null,null,null,null,null,null,"Tipo de chequera",null,null,null,null,null,null,"Cantidad de cheques"]
[]
[null,null,null,null,"Nombre en la chequera:"]
[]
[null,null,null,null,"Agencia para el recojo:"]
[]
["9. ACEPTACIÓN DE TERMINOS Y CONDICIONES Y FIRMA DE REPRESENTANTE LEGAL"]
[]
[null,"Declaraciones y autorizaciones:\nEl(los) cliente(s) declara(n) que los bienes e ingresos y datos  detallados y registrados en este documento, son ciertos  y correctos y cualquier cambio será debidament actualizado ante el banco, asumiendo cualquier responsabildiad por omisión; asi mismo declaro que los fondos de esta transacción y los que honrarán su obligación, son lícitos, no provienen de/ni serán destinados a ninguna actividad ilegal o delictiva, ni consentirá(n) que se efectúen depósitos o transferencias a su cuenta provenientes de estas actividades.\nExpresamente autoriza(n) a Banco Pichincha C.A. realizar las investigaciones, verificaciones y debida diligencia correspondientes e informar de manera inmediata y documentada a la autoridad competente en casos de investigación o cuando se detectaren transacciones inusuales e injustificadas, por lo que no ejercerá ningún reclamo o acción judicial.\nCertifico que he firmado el presente documento con posterioridad al registro de toda la información solicitada en este formulario."]
[null,"Autorizo(amos) expresa e indefinidamente al Banco Pichincha C.A. o a cualquiera de los integrantes del Grupo Financiero al que pertenece el Banco Pichincha C.A., para que obtenga(n) de cualquier fuente de información incluido Burós de Información Crediticia autorizados para operar en el país, Registro de Datos Crediticios del Sistema Nacional del registro de Datos Públicos, mis(nuestras) referencias personales y/o patrimoniales anteriores, actuales y/o posteriores a la suscripción de esta autorización, sea como deudor principal, codeudor o garante, sobre mi(nuestro) comportamiento crediticio, manejo de mi(s) cuenta(s) corriente(s), de ahorro, tarjeta(s) de crédito, etc.; y en general al cumplimiento de mis(nuestras) obligaciones y demás activos, pasivos, datos personales y/o patrimoniales, aplicables para uno o más de los servicios y productos que brindan las instituciones del sistema financiero, según corresponda; esta autorización comprende la transferencia o entrega de la mencionada información,  a cualquier registro crediticio, Burós de Información Crediticia autorizados para el efecto, a autoridades competentes, SRI y demás organismos de control.\n"]
[null,"Declaro que la información referente a la residencia fiscal de mi representada, y que ha sido proporcionada por este medio, es correcta y completa, en conocimiento de lo establecido por la normativa fiscal y bancaria ecuatoriana.\n\nEntiendo que Banco Pichincha C.A. tiene la obligación legal de recolectar y proporcionar, directa e indirectamente, la información contenida en este formulario y una copia de este formulario a cualquier autoridad fiscal e intercambiada con la autoridad tributaria de otros países en los cuales se me pueda considerar como residente fiscal, para fines fiscales, así como a divulgar a tales autoridades fiscales cualquier información fiscal que el Banco Pichincha C.A. pudiera poseer, para el intercambio financiero de información de cuentas.\n\nMe comprometo a comunicar inmediatamente a Banco Pichincha C.A. sobre cualquier cambio en las circunstancias que cause que la información proporcionada sea incorrecta y a proporcionar a Banco Pichincha C.A. un formulario actualizado de Autocertificación de Residencia Fiscal  en el plazo de 30 días a partir del cambio de circunstancias."]
[]
[null,"Acepto los términos mencionados anteriormente:"]
[]
[]
[]
[]
[]
[]
[]
[]
[null,"Firma del representante legal o apoderado",null,null,null,null,null,null,null,null,null,null,null,"Firma del representante legal o apoderado"]
[]
[]
[]
[]
[]
[]
[]
[]
[null,"Firma del representante legal o apoderado",null,null,null,null,null,null,null,null,null,null,null,"Firma del representante legal o apoderado"]

{"sheet":"Datos","index":1,"n_rows":389,"n_cols":16,"rows_kept":389,"cut":false,"hidden":true,"merged":[]}
[]
["Día","Mes","Año","Tipo Empresa","Forma jurídica","Sector","Actividad Economica","Const o Bene","Nro de RL","Proposito de la cuenta","Origen de fondos","Lista de Actividades controladas","Tipo de entidad","Servicios Cash","Tipo de Firma","Condición"]
[1,1,null,"Pública","COMPAÑIAS Y SOCIEDADES","01000 - PRODUCCION AGROPECUARIA","ABASTECIMIENTO DE EVENTOS Y OTRAS ACTIVIDADES DE SERVICIO DE COMIDAS ","C",1,"AHORRAR ","ACREDITACION SUELDOS, SALARIOS Y OTROS BENEFICIOS ","N/A","Institución de Depósito. Ej: Bancos comerciales, cooperativas de ahorro y crédito, uniones crediticias, asociaciones de préstamos, etc. \n","(C) Consulta de saldos: Permite al usuario consultar el estado de su información financiera","Independiente","A"]
[2,2,2030,"Privada","PERSONAS JURIDICAS SIN FINES DE LUCRO","02000 - EXPLOTACION DE MADERA","ACTIVIDADES AUXILIARES DE SEGUROS (INCLUYE LAS ACTIVIDADES DE PERITOS DE SEGUROS Y ASESORES PRODUCTORES DE SEGUROS) ","B",2,"CUENTA DE CAMPANIA POLITICA ","ADMINISTRACION DE CUOTAS DE CONDOMINIO ","Filiales extranjeras bajo control de las instituciones del Sistema Financiero Nacional","Institución de Custodia. Ej: Bancos de custodia, agentes designados, fideicomisos, depósitos centralizados de valores, etc.","(P) Pago servicios básicos / SENAE: Permite al usuario pagar servicios basicos como luz, agua, telefono, etc.","Conjunta","B"]
[3,3,2029,"Mixta","SOCIEDADES DE HECHO Y CONSORCIOS","03000 - PESCA DE ALTURA Y COSTERA","ACTIVIDADES DE ADMINISTRACION DE EMPRESAS Y CONSULTORIA ",null,3,"INVERSIONES ","APORTES AFILIADOS Y/O DEL ESTADO ","Bolsas y Casas de Valores","Entidad de Inversión. Ej: Comercio/Inversión en activos financieros, asesorías de inversión, etc. a nombre de otros.","(TP) Transferencias entre cuentas propias: Transacciones entre cuentas propias de Banco Pichincha",null,"C"]
[4,4,2028,null,"UNIVERSIDADES Y ESCUELAS POLITECNICAS","04000 - PRODUCCION DE PETROLEO, CRUDO Y GAS NATURAL","ACTIVIDADES DE AGENCIAS DE EMPLEO ",null,4,"NEGOCIO ","APORTES DE FUNDACIONES, ONG'S ","Administradoras de Fondos y Fideicomisos","Compañía de Seguro Específico: Contrato de Seguro con Valor Efectivo o un Contrato de Anualidades.","(T) Pago a terceros: Transacciones entre cuentas de otros bancos nacionales o cooperativas ",null,"D"]
[5,5,2027,null,"ONG Y COMPAÑIAS EXTRANJERAS NO DOMICILIADAS","05000 - EXTRACCION  DE MINERALES METALICOS","ACTIVIDADES DE AGENCIAS DE VIAJES, OPERADORES TURISTICOS Y SERVICIOS DE RESERVA  ",null,5,"PERSONAL ","ARRIENDO BIENES MUEBLES E INMUEBLES ","Fundaciones y ONGs","ENF (Entidad no financiera) Activa",null,null,"E"]
[6,6,2026,null,"FIDEICOMISOS","06000 - EXTRACCION DE OTROS MINERALES","ACTIVIDADES DE ALMACENERAS ",null,6,"PERSONAS NATURALES ","COMERCIALIZACION DE PRODUCTOS EN GENERAL ","Comercialización de vehículos, embarcaciones, naves y aeronaves.","ENF (Entidad no financiera) Pasiva"]
[7,7,2025,null,"ORG. DIPLOMATICAS","07000 - PRODUCTOS ALIMENTICIOS","ACTIVIDADES DE ALQUILER Y ARRENDAMIENTO (EXCEPTO INMOBILIARIAS) ",null,7,"PROYECTOS DE DESARROLLO COMUNITARIO ","COMERCIALIZACION DE PRODUCTOS FARMACEUTICOS ","Transferencia nacional e internacional de dinero o valores, transporte nacional e internacional de dinero, encomiendas o correos."]
[8,8,2024,null,"ORG. RELIGIOSAS Y PARROQUIAS","08000 - TEXTILES, PRENDAS DE VESTIR E INDUSTRIAS DEL CUERO","ACTIVIDADES DE APOYO A LA EXTRACCION DE PETROLEO Y GAS NATURAL ",null,8,"RECIBIR PAGOS DE TERCEROS ","CONTRATOS ADJUDICADOS POR EL ESTADO ","Agencias de turismo y operadores turísticos"]
[9,9,2023,null,"EDIFICIOS Y CONDOMINIOS","09000 - INDUSTRIA Y PRODUCTOS DE LA MADERA","ACTIVIDADES DE ARQUITECTURA E INGENIERIA ",null,9,"RECIBIR ROL DE PAGOS ","CREDITOS OTORGADOS POR LA CFN ","Inversión e intermediación inmobiliaria construcción"]
[10,10,{"$f":"YEAR(TODAY())","v":2025},null,"PARTIDOS POLITICOS","10000 - FABRICACION DE PAPEL Y PRODUCTOS DE PAPEL","ACTIVIDADES DE BANCOS ",null,10,"RECIBIR TRANSFERENCIAS DEL EXTERIOR ","DONACIONES ","Hipódromos"]
[11,11,{"$f":"C12-1","v":2024},null,"OTROS","11000 - FABRICACION DE PRODUCTOS QUIMICOS, DERIVADOS DE CAUCHO Y PLASTICO","ACTIVIDADES DE CASAS DE CAMBIO ",null,null,null,"EXPLOTACION DE MINAS ","Montes de Piedad y las casas de empeño"]
[12,12,{"$f":"C13-1","v":2023},null,null,"12000 - FABRICACION DE PRODUCTOS MINERALES NO METALICOS","ACTIVIDADES DE COOPERATIVAS ",null,null,null,"EXPORTACION DE PRODUCTOS EN GENERAL ","Negociadores de joyas, metales y piedras preciosas"]
[13,null,2022,null,null,"13000 - INDUSTRIAS METALICAS BASICAS","ACTIVIDADES DE HOSPITALES ",null,null,null,"GIROS DEL EXTERIOR (REMESAS) ","Comerciantes de antigüedades y obras de arte"]
[14,null,2021,null,null,"14000 - FABRICACION DE PRODUCTOS METALICOS, MAQUINARIA Y EQUIPO","ACTIVIDADES DE INSTITUCIONES FINANCIERAS PUBLICAS ",null,null,null,"INDEMNIZACIONES ","Promotores artísticos y organizadores de rifas"]
[15,null,2020,null,null,"15000 - ELECTRICIDAD, GAS Y VAPOR","ACTIVIDADES DE MEDICOS Y ODONTOLOGOS ",null,null,null,"LOTERIAS ","Registradores de la propiedad y mercantiles"]
[16,null,2019,null,null,"16000 - CONSTRUCCION","ACTIVIDADES DE MUTUALISTAS ",null,null,null,"RECAUDACIONES DE TAQUILLA POR EVENTOS REALIZADOS ","Partidos y organizaciones políticas"]
[17,null,2018,null,null,"17000 - COMERCIO","ACTIVIDADES DE PRODUCCION DE PELICULAS, DE VIDEO, DE PROGRAMAS DE TELEVISION, GRABACION Y PUBLICACION DE MUSICA Y SONIDO ",null,null,null,"RECUPERACION DE CARTERA ","Transportadoras de valores"]
[18,null,2017,null,null,"18000 - RESTAURANTES Y HOTELES","ACTIVIDADES DE SEGURIDAD E INVESTIGACION ",null,null,null,"VENTA DE BIENES MUEBLES E  INMUEBLES "]
[19,null,2016,null,null,"19000 - TRANSPORTE  Y ALMACENAMIENTO","ACTIVIDADES DE SERVICIOS A EDIFICIOS Y PAISAJES ",null,null,null,"VENTA DE PRODUCTOS E INSUMOS DEL MAR "]
[20,null,2015,null,null,"20000 - COMUNICACIONES","ACTIVIDADES DE TARJETAS DE CREDITO "]
[21,null,2014,null,null,"21000 - ESTABLECIMIENTOS FINANCIEROS","ACTIVIDADES INMOBILIARIAS "]
[22,null,2013,null,null,"22000 - SEGUROS","ACTIVIDADES POSTALES Y DE CORREO "]
[23,null,2012,null,null,"23000 - SERVICIOS PRESTADOS A EMPRESAS","ACTIVIDADES VETERINARIAS "]
[24,null,2011,null,null,"24000 - ADMINISTRACION PUBLICA Y DEFENSA","ACUICULTURA Y PESCA DE CAMARON "]
[25,null,2010,null,null,"25000 - SERVICIOS DE SANEAMIENTO Y SIMILARES","AERONAVES "]
[26,null,2009,null,null,"26000 - INSTRUCCION PUBLICA","AMBULANCIA "]
[27,null,2008,null,null,"27000 - SERVICIOS MEDICOS QUIRURGICOS Y OTROS SERVICIOS DE SANIDAD","ARMAS "]
[28,null,2007,null,null,"28000 - SERVICIOS DE VETERINARIA","ARTICULOS DE OFICINA Y PAPELERIA "]
[29,null,2006,null,null,"29000 - INSTITUCIONES DE ASISTENCIA SOCIAL","ARTICULOS DEPORTIVOS "]
[30,null,2005,null,null,"30000 - ASOCIACIONES COMERCIALES, PROFESIONALES Y LABORALES","ARTICULOS HOGAR "]
[31,null,2004,null,null,"31000 - SERVICIOS DE DIVERSION, ESPARCIMIENTO Y CULTURALES","ARTICULOS MUSICALES "]
[null,null,2003,null,null,"32000 - SERVICIOS PERSONALES Y DE LOS HOGARES","ASERRADEROS Y CEPILLADURA DE MADERA "]
[null,null,2002,null,null,"33000 - ACTIVIDADES NO ECONOMICAS","ASESORIA JURIDICA "]
[null,null,2001,null,null,"34000 - SERVICIOS MILITARES","BAR  Y DISCOTECA "]
[null,null,2000,null,null,"35000 - EXPLOTACION DE MINAS Y CANTERAS","BAZAR Y PERFUMERIA "]
[null,null,1999,null,null,"36000 - ELABORACION DE BEBIDAS","BEBIDAS GASEOSAS "]
[null,null,1998,null,null,"38000 - FABRICACION DE PRENDAS DE VESTIR","BEBIDAS NATURALES Y JUGOS DE FRUTAS "]
[null,null,1997,null,null,"39000 - FABRICACION DE CUEROS Y PRODUCTOS CONEXOS","BIBLIOTECA Y MUSEO "]
[null,null,1996,null,null,"40000 - IMPRESION Y REPRODUCCION DE GRABACIONES","CAL Y YESO "]
[null,null,1995,null,null,"41000 - FABRICACION DE SUBSTANCIAS Y OTROS PRODUCTOS QUIMICOS","CANTERAS "]
[null,null,1994,null,null,"42000 - FABRICACION DE PRODUCTOS FARMACEUTICOS, SUSTANCIAS QUIMICAS MEDICINALES Y PRODUCTOS BOTANICOS DE USO FARMACEUTICO","CAPTACION, DEPURACION Y DISTRIBUCION DE AGUA Y SANEAMIENTO "]
[null,null,1993,null,null,"43000 - FABRICACION DE OTROS PRODUCTOS DE CAUCHO Y PLASTICO","CARTON (CAJAS Y OTROS PRODUCTOS) "]
[null,null,1992,null,null,"44000 - FABRICACION DE PRODUCTOS ELABORADOS DE METAL, EXCEPTO MAQUINARIA Y EQUIPO","CEMENTERIO "]
[null,null,1991,null,null,"45000 - FABRICACION DE PRODUCTOS DE INFORMATICA, ELECTRONICA Y OPTICA","CEMENTO "]
[null,null,1990,null,null,"46000 - FABRICACION DE EQUIPO ELECTRICO","CENTRALES HIDROELECTRICAS "]
[null,null,1989,null,null,"47000 - FABRICACION DE MAQUINARIA Y EQUIPO NCP","CENTROS DE FOTOCOPIADO "]
[null,null,1988,null,null,"48000 - FABRICACION DE VEHICULOS AUTOMOTORES, REMOLQUES Y SEMIRREMOLQUES","CINE Y TEATRO "]
[null,null,1987,null,null,"49000 - FABRICACION DE OTROS TIPOS DE EQUIPOS DE TRANSPORTE","CLUB PRIVADO "]
[null,null,1986,null,null,"50000 - OTRAS INDUSTRIAS MANUFACTURERAS","COMERCIAL (CENTROS COMERCIALES, LOCALES Y ALMACENES) "]
[null,null,1985,null,null,"51000 - REPARACION E INSTALACION DE MAQUINARIA Y EQUIPO","COMERCIO AL POR MAYOR DE  OTRA MAQUINARIA Y EQUIPO "]
[null,null,1984,null,null,"52000 - DISTRIBUCION DE AGUA, ALCANTARILLADO, GESTION DE DESECHOS Y ACTIVIDADES DE SANEAMIENTO","COMERCIO AL POR MAYOR DE ACEITES Y GRASAS DE ORIGEN VEGETAL Y ANIMAL "]
[null,null,1983,null,null,"53000 - COMERCIO Y REPARACION DE VEHICULOS AUTOMOTORES Y MOTOCICLETAS","COMERCIO AL POR MAYOR DE ALIMENTOS PARA ANIMALES "]
[null,null,1982,null,null,"54000 - COMERCIO AL POR MENOR, EXCEPTO EL DE VEHICULOS AUTOMOTORES Y MOTOCICLETAS","COMERCIO AL POR MAYOR DE ANIMALES VIVOS Y SUS PRODUCTOS "]
[null,null,1981,null,null,"55000 - COMERCIO AL POR MAYOR, EXCEPTO EL DE VEHICULOS AUTOMOTORES Y MOTOCICLETAS","COMERCIO AL POR MAYOR DE AZUCAR Y SUS PRODUCTOS "]
[null,null,1980,null,null,"56000 - ACTIVIDADES INMOBILIARIAS","COMERCIO AL POR MAYOR DE BANANO Y PLATANO "]
[null,null,1979,null,null,"57000 - ACTIVIDADES PROFESIONALES, CIENTIFICAS Y TECNICAS","COMERCIO AL POR MAYOR DE BEBIDAS ALCOHOLICAS "]
[null,null,1978,null,null,"58000 - ACTIVIDADES DE ORGANIZACIONES Y ORGANOS EXTRATERRITORIALES","COMERCIO AL POR MAYOR DE BEBIDAS NO ALCOHOLICAS "]
[null,null,1977,null,null,"59000 - BAJO RELACION DE DEPENDENCIA SECTOR PRIVADO","COMERCIO AL POR MAYOR DE CACAO EN GRANO "]
[null,null,1976,null,null,"60000 - BAJO RELACION DE DEPENDENCIA SECTOR PUBLICO","COMERCIO AL POR MAYOR DE CAFE (CEREZA Y CAFE PILADO) "]
[null,null,1975,null,null,"60001 - X250000|ACTIVIDADES LABORALES REALIZADAS BAJO RELACION DE DEPENDENCIA EN EL SECTOR PUBLICO","COMERCIO AL POR MAYOR DE CAFE TOSTADO MOLIDO Y SOLUBLE "]
[null,null,1974,null,null,"99000 - SIN ACTIVIDAD ECONOMICA CIIU","COMERCIO AL POR MAYOR DE CALZADO "]
[null,null,1973,null,null,null,"COMERCIO AL POR MAYOR DE CAMARON CONGELADO, OTROS PROCESOS Y EXPORTACION "]
[null,null,1972,null,null,null,"COMERCIO AL POR MAYOR DE CAMARON, PESCADO Y PRODUCTOS DE LA ACUICULTURA (FRESCO O REFRIGERADO) "]
[null,null,1971,null,null,null,"COMERCIO AL POR MAYOR DE CEREALES "]
[null,null,1970,null,null,null,"COMERCIO AL POR MAYOR DE CIGARRILLOS Y PRODUCTOS DEL TABACO "]
[null,null,1969,null,null,null,"COMERCIO AL POR MAYOR DE CUERO Y PRODUCTOS DE CUERO (EXCEPTO PRENDAS DE VESTIR) "]
[null,null,1968,null,null,null,"COMERCIO AL POR MAYOR DE ELECTRODOMESTICOS "]
[null,null,1967,null,null,null,"COMERCIO AL POR MAYOR DE EQUIPOS DE COMPUTACION "]
[null,null,1966,null,null,null,"COMERCIO AL POR MAYOR DE FLORES "]
[null,null,1965,null,null,null,"COMERCIO AL POR MAYOR DE HARINA DE PESCADO "]
[null,null,1964,null,null,null,"COMERCIO AL POR MAYOR DE HILOS, HILADOS, TEJIDOS, TELAS Y CONFECCIONES CON MATERIALES TEXTILES (EXCEPTO PRENDAS DE VESTIR) "]
[null,null,1963,null,null,null,"COMERCIO AL POR MAYOR DE LECHE PROCESADA Y PRODUCTOS LACTEOS "]
[null,null,1962,null,null,null,"COMERCIO AL POR MAYOR DE MADERA SIN ELABORAR "]
[null,null,1961,null,null,null,"COMERCIO AL POR MAYOR DE OTROS PRODUCTOS AGRICOLAS "]
[null,null,1960,null,null,null,"COMERCIO AL POR MAYOR DE OTROS PRODUCTOS ALIMENTICIOS DIVERSOS (INCLUYE JUGOS DE FRUTAS Y VEGETALES Y SUS CONSERVAS) "]
[null,null,{"$f":"C77-1","v":1959},null,null,null,"COMERCIO AL POR MAYOR DE PAPEL Y CARTON Y PRODUCTOS DE PAPEL Y CARTON "]
[null,null,1958,null,null,null,"COMERCIO AL POR MAYOR DE PESCADO CONGELADO, SECO Y SALADO Y OTROS PRODUCTOS DE LA PESCA Y ACUICULTURA Y CONSERVAS DE PRODUCTOS ACUATICOS "]
[null,null,1957,null,null,null,"COMERCIO AL POR MAYOR DE PRENDAS DE VESTIR "]
[null,null,1956,null,null,null,"COMERCIO AL POR MAYOR DE PRODUCTOS CARNICOS "]
[null,null,1955,null,null,null,"COMERCIO AL POR MAYOR DE PRODUCTOS CERAMICOS (INCLUYE CERAMICOS, VIDRIO Y CEMENTO) "]
[null,null,1954,null,null,null,"COMERCIO AL POR MAYOR DE PRODUCTOS DE CACAO ELABORADO Y PRODUCTOS DE CONFITERIA "]
[null,null,1953,null,null,null,"COMERCIO AL POR MAYOR DE PRODUCTOS DE CAUCHO (INCLUYE LLANTAS) "]
[null,null,1952,null,null,null,"COMERCIO AL POR MAYOR DE PRODUCTOS DE LA MADERA ASERRADA, DESCORTEZADA, TABLEROS, PANELES, HOJAS DE MADERA, CAJAS, CAJONES Y OBRAS DE MADERA PARA EDIFICIOS "]
[null,null,1951,null,null,null,"COMERCIO AL POR MAYOR DE PRODUCTOS DE MOLINERIA, PANADERIA, FIDEOS Y PASTAS "]
[null,null,1950,null,null,null,"COMERCIO AL POR MAYOR DE PRODUCTOS EDITORIALES, IMPRENTAS Y OTROS "]
[null,null,1949,null,null,null,"COMERCIO AL POR MAYOR DE PRODUCTOS FARMACEUTICOS "]
[null,null,1948,null,null,null,"COMERCIO AL POR MAYOR DE PRODUCTOS METALICOS (INCLUYE ORO REFINADO Y OTROS METALES PRECIOSOS), EXCLUYE JOYERIAS "]
[null,null,1947,null,null,null,"COMERCIO AL POR MAYOR DE PRODUCTOS PLASTICOS "]
[null,null,1946,null,null,null,"COMERCIO AL POR MAYOR DE PRODUCTOS QUIMICOS (EXCEPTO FARMAEUTICOS) "]
[null,null,1945,null,null,null,"COMERCIO AL POR MENOR DE CALZADO "]
[null,null,1944,null,null,null,"COMERCIO AL POR MENOR DE ELECTRODOMESTICOS "]
[null,null,1943,null,null,null,"COMERCIO AL POR MENOR DE EQUIPOS DE COMPUTACION "]
[null,null,1942,null,null,null,"COMERCIO AL POR MENOR DE EQUIPOS MEDICOS "]
[null,null,1941,null,null,null,"COMERCIO AL POR MENOR DE MUEBLES EN GENERAL (EXCLUYE MUEBLES PARA USO MEDICO) "]
[null,null,1940,null,null,null,"COMERCIO VEHICULOS AUTOMOTORES Y MOTOCICLETAS "]
[null,null,1939,null,null,null,"COMPLEJO TURISTICO "]
[null,null,1938,null,null,null,"CONFECCIONES OTROS (ALFOMBRAS, CORTINAS, TAPICES, ETC.) "]
[null,null,1937,null,null,null,"CONSTRUCCIONES NAVALES Y REPARACION DE BARCOS "]
[null,null,1936,null,null,null,"CRIA DE CABALLOS Y OTROS EQUINOS "]
[null,null,1935,null,null,null,"CRIA DE CERDOS "]
[null,null,1934,null,null,null,"CRIA DE CONEJOS Y CUYES "]
[null,null,1933,null,null,null,"CRIA DE OTRAS AVES DE CORRAL "]
[null,null,1932,null,null,null,"CRIA DE OTROS ANIMALES VIVOS  "]
[null,null,1931,null,null,null,"CRIA DE OTROS PRODUCTOS ACUATICOS NCP "]
[null,null,1930,null,null,null,"CRIA DE OVEJAS Y CABRAS "]
[null,null,1929,null,null,null,"CRIA DE POLLOS (INCLUYE GALLINAS) "]
[null,null,1928,null,null,null,"CRIA DE TILAPIA "]
[null,null,1927,null,null,null,"CRISTALERIA Y CERAMICA "]
[null,null,1926,null,null,null,"CULTIVO DE ABACA "]
[null,null,1925,null,null,null,"CULTIVO DE CACAO (EN GRANO, CRUDO O TOSTADO) "]
[null,null,1924,null,null,null,"CULTIVO DE CAFE (CEREZA, SIN TOSTAR, NO DESCAFEINADO- INCLUYE PILADO-) "]
[null,null,1923,null,null,null,"CULTIVO DE CAÑA DE AZUCAR  "]
[null,null,1922,null,null,null,"CULTIVO DE CAUCHO "]
[null,null,1921,null,null,null,"CULTIVO DE CEBADA "]
[null,null,1920,null,null,null,"CULTIVO DE CEBOLLA BLANCA Y COLORADA "]
[null,null,1919,null,null,null,"CULTIVO DE CLAVELES "]
[null,null,1918,null,null,null,"CULTIVO DE FREJOL  "]
[null,null,1917,null,null,null,"CULTIVO DE FRUTAS CITRICAS "]
[null,null,1916,null,null,null,"CULTIVO DE GYPSOPHILAS "]
[null,null,1915,null,null,null,"CULTIVO DE HABA "]
[null,null,1914,null,null,null,"CULTIVO DE LECHUGA "]
[null,null,1913,null,null,null,"CULTIVO DE LENTEJA "]
[null,null,1912,null,null,null,"CULTIVO DE MAIZ DURO "]
[null,null,1911,null,null,null,"CULTIVO DE MAIZ SUAVE "]
[null,null,1910,null,null,null,"CULTIVO DE MANGO "]
[null,null,1909,null,null,null,"CULTIVO DE MANI "]
[null,null,1908,null,null,null,"CULTIVO DE MANZANA "]
[null,null,1907,null,null,null,"CULTIVO DE MARACUYA "]
[null,null,1906,null,null,null,"CULTIVO DE MELON "]
[null,null,1905,null,null,null,"CULTIVO DE MORA "]
[null,null,1904,null,null,null,"CULTIVO DE OTRAS FRUTRAS "]
[null,null,1903,null,null,null,"CULTIVO DE OTRAS OLEAGINOSAS N.C.P. "]
[null,null,1902,null,null,null,"CULTIVO DE OTROS CEREALES N.C.P. "]
[null,null,1901,null,null,null,"CULTIVO DE OTROS TUBERCULOS Y RAICES "]
[null,null,1900,null,null,null,"CULTIVO DE OTROS VEGETALES Y MELONES N.C.P. "]
[null,null,1899,null,null,null,"CULTIVO DE PALMA AFRICANA "]
[null,null,1898,null,null,null,"CULTIVO DE PALMITO "]
[null,null,1897,null,null,null,"CULTIVO DE PAPA "]
[null,null,1896,null,null,null,"CULTIVO DE PAPAYA "]
[null,null,{"$f":"C141-1","v":1895},null,null,null,"CULTIVO DE PASTO Y PLANTAS FORRAJERAS "]
[null,null,1894,null,null,null,"CULTIVO DE PIMIENTO "]
[null,null,1893,null,null,null,"CULTIVO DE PIÑA "]
[null,null,1892,null,null,null,"CULTIVO DE PLATANO "]
[null,null,1891,null,null,null,"CULTIVO DE ROSAS "]
[null,null,1890,null,null,null,"CULTIVO DE SANDIA "]
[null,null,1889,null,null,null,"CULTIVO DE SOYA "]
[null,null,1888,null,null,null,"CULTIVO DE TABACO EN RAMA "]
[null,null,1887,null,null,null,"CULTIVO DE TAGUA "]
[null,null,1886,null,null,null,"CULTIVO DE TOMATE "]
[null,null,1885,null,null,null,"CULTIVO DE TOMATE DE ARBOL "]
[null,null,1884,null,null,null,"CULTIVO DE TRIGO "]
[null,null,1883,null,null,null,"CULTIVO DE YUCA "]
[null,null,1882,null,null,null,"CULTIVOS DE CICLO CORTO NO ESPECIFICADO "]
[null,null,1881,null,null,null,"CULTIVOS DE OTRAS FLORES  "]
[null,null,1880,null,null,null,"CULTIVOS DE OTROS PRODUCTOS AGRICOLAS "]
[null,null,1879,null,null,null,"CURTIDO Y ADOBO DE CUEROS; ADOBO Y TEÑIDO DE PIELES "]
[null,null,1878,null,null,null,"DEMOLICION Y PREPARACION DE TERRENO (INCLUYE INSTALACION DE REDES TELEFONICAS, INSTALACION ELECTRICA, FONTANERIA Y OTRAS INSTALACIONES DE LA CONSTRUCCION) "]
[null,null,1877,null,null,null,"DEPOSITO DE BEBIDAS (GASEOSAS, CERVEZA, JUGOS,ETC.) "]
[null,null,1876,null,null,null,"DEPOSITO Y ALMACENAJE "]
[null,null,1875,null,null,null,"DISTRIBUIDORA DE GAS "]
[null,null,1874,null,null,null,"EDITORIALES "]
[null,null,1873,null,null,null,"EDUCACION PREESCOLAR "]
[null,null,1872,null,null,null,"EDUCACION PRIMARIA "]
[null,null,1871,null,null,null,"ELABORACION DE ACEITES Y GRASAS ORIGEN VEGETAL Y ANIMAL "]
[null,null,1870,null,null,null,"ELABORACION DE ALIMENTO PARA ANIMALES  "]
[null,null,1869,null,null,null,"ELABORACION DE ALMIDONES Y PRODUCTOS ELABORADOS DE ALMIDON "]
[null,null,1868,null,null,null,"ELABORACION DE CACAO, CHOCOLATE Y PRODUCTOS CONFITERIA "]
[null,null,1867,null,null,null,"ELABORACION DE CAFE "]
[null,null,1866,null,null,null,"ELABORACION DE CERVEZA Y BEBIDAS DE MALTA "]
[null,null,1865,null,null,null,"ELABORACION DE CONSERVAS DE ATUN "]
[null,null,1864,null,null,null,"ELABORACION DE CONSERVAS DE OTRAS ESPECIES ACUATICAS "]
[null,null,1863,null,null,null,"ELABORACION DE FIDEOS, PASTAS DE FIDEO Y OTROS PRODUCTOS "]
[null,null,1862,null,null,null,"ELABORACION DE LECHE FRESCA LIQUIDA "]
[null,null,1861,null,null,null,"ELABORACION DE OTRAS BEBIDAS ALCOHOLICAS  "]
[null,null,1860,null,null,null,"ELABORACION DE OTROS PRODUCTOS LACTEOS "]
[null,null,1859,null,null,null,"ELABORACION DE PESCADO Y OTROS PRODUCTOS ACUATICOS ELABORADOS EXCEPTO HARINA DE PESCADO "]
[null,null,1858,null,null,null,"ELABORACION DE PRODUCTOS DE LA PANADERIA Y PASTELERIA "]
[null,null,1857,null,null,null,"ELABORACION DE PRODUCTOS DE TABACO "]
[null,null,1856,null,null,null,"ELABORACION DE RAMILLETES, CORONAS, ARREGLOS FLORALES Y ARTICULOS SIMILARES "]
[null,null,1855,null,null,null,"ELABORACION DE RECIPIENTES DE MADERA Y DE OTROS PRODUCTOS DE MADERA; FABRICACION DE ARTICULOS DE CORCHO, PAJA Y MATERIALES TRENZABLES "]
[null,null,1854,null,null,null,"ELABORACION Y CONSERVACION DE CAMARON "]
[null,null,1853,null,null,null,"ELABORACION Y REFINACION DE AZUCAR "]
[null,null,1852,null,null,null,"EMPRESA DE FACTORING "]
[null,null,1851,null,null,null,"EMPRESA DE LEASING "]
[null,null,1850,null,null,null,"EMPRESA DE SEGUROS "]
[null,null,1849,null,null,null,"ENSEÑANZA DE POSGRADO "]
[null,null,1848,null,null,null,"ENSEÑANZA SECUNDARIA "]
[null,null,1847,null,null,null,"ENSEÑANZA SUPERIOR "]
[null,null,1846,null,null,null,"ENVASADOS Y CONSERVAS DE FRUTAS Y LEGUMBRES "]
[null,null,1845,null,null,null,"ENVASES METALICOS (UTENCILLOS, CONTENEDORES, TAMBORES, ETC.) "]
[null,null,1844,null,null,null,"ESCUELA DE ARTES Y OFICIOS "]
[null,null,1843,null,null,null,"ESCUELAS TECNICA, PROFESIONAL O COMERCIAL "]
[null,null,1842,null,null,null,"ESPECTACULO PUBLICO EN VIVO "]
[null,null,1841,null,null,null,"ESTACION DE RADIO "]
[null,null,1840,null,null,null,"ESTACION DE TELEVISION "]
[null,null,1839,null,null,null,"EXPLOTACION DE GAS NATURAL "]
[null,null,1838,null,null,null,"EXPLOTACION DE MINERALES DE COBRE Y SUS CONCENTRADOS "]
[null,null,1837,null,null,null,"EXPLOTACION DE MINERALES DE METALES PRECIOSOS "]
[null,null,1836,null,null,null,"EXPLOTACION DE OTROS MINERALES METALIFEROS "]
[null,null,1835,null,null,null,"EXPLOTACION DE PETROLEO "]
[null,null,1834,null,null,null,"EXTRACCION DE MADERA  "]
[null,null,1833,null,null,null,"EXTRACCION DE PIEDRA, ARENA Y ARCILLA "]
[null,null,1832,null,null,null,"FABRICACION DE ABONOS; FABRICACION DE PESTICIDAS Y DE OTROS PRODUCTOS QUIMICOS DE USO AGROPECUARIO "]
[null,null,{"$f":"C205-1","v":1831},null,null,null,"FABRICACION DE APARATOS DE USO DOMESTICO "]
[null,null,1830,null,null,null,"FABRICACION DE ARTICULOS DE DEPORTE "]
[null,null,1829,null,null,null,"FABRICACION DE CALZADO DE CUALQUIER MATERIAL "]
[null,null,1828,null,null,null,"FABRICACION DE EQUIPO DE OFICINA (EXCEPTO COMPUTADORAS) "]
[null,null,1827,null,null,null,"FABRICACION DE EQUIPOS ELECTRICOS (MOTORES, BATERIAS,PILAS EXCEPTO USO DOMESTICO) "]
[null,null,1826,null,null,null,"FABRICACION DE HOJAS DE MADERA PARA ENCHAPADO Y PANELES A BASE DE MADERA "]
[null,null,1825,null,null,null,"FABRICACION DE INSTRUMENTOS MUSICALES "]
[null,null,1824,null,null,null,"FABRICACION DE INSTRUMENTOS Y SUMINISTROS MEDICOS Y DENTALES "]
[null,null,1823,null,null,null,"FABRICACION DE JABONES Y DETERGENTES, PREPARADOS PARA LIMPIAR Y PULIR, PERFUMES Y PREPARADOS DE TOCADOR "]
[null,null,1822,null,null,null,"FABRICACION DE JOYAS Y ARTICULOS CONEXOS "]
[null,null,1821,null,null,null,"FABRICACION DE JUEGOS Y JUGUETES "]
[null,null,1820,null,null,null,"FABRICACION DE LOS PRODUCTOS INFORMATICOS, ELECTRONICOS Y OPTICOS "]
[null,null,1819,null,null,null,"FABRICACION DE MALETAS, BOLSOS DE MANO Y ARTICULOS DE TALABARTERIA Y GUARNICIONERIA "]
[null,null,1818,null,null,null,"FABRICACION DE MAQUINARIA Y EQUIPO NCP "]
[null,null,1817,null,null,null,"FABRICACION DE OTROS PRODUCTOS MINERALES NO METALICOS NCP "]
[null,null,1816,null,null,null,"FABRICACION DE PARTES Y PIEZAS DE CARPINTERIA PARA EDIFICIOS Y CONSTRUCCIONES "]
[null,null,1815,null,null,null,"FABRICACION DE PINTURAS, BARNICES Y PRODUCTOS DE REVESTIMIENTO SIMILARES, TINTAS DE IMPRENTA Y MASILLAS "]
[null,null,1814,null,null,null,"FABRICACION DE PRENDAS DE VESTIR Y TEJIDOS DE GANCHILLO (INCLUSO DE CUERO Y PIEL) "]
[null,null,1813,null,null,null,"FABRICACION DE PRODUCTOS DE METALES PRECIOSOS (EXCEPTO JOYAS) "]
[null,null,1812,null,null,null,"FABRICACION DE PRODUCTOS DE OTROS METALES (EXCEPTO PRECIOSOS) "]
[null,null,1811,null,null,null,"FABRICACION DE PRODUCTOS DE PLASTICO "]
[null,null,1810,null,null,null,"FABRICACION DE PRODUCTOS FARMACEUTICOS, SUSTANCIAS QUIMICAS MEDICINALES Y DE PRODUCTOS BOTANICOS "]
[null,null,1809,null,null,null,"FABRICACION DE SUSTANCIAS QUIMICAS BASICAS, EXCEPTO ABONOS Y PLAGUICIDAS; PLASTICOS Y CAUCHOS PRIMARIOS "]
[null,null,1808,null,null,null,"FABRICACION DE VEHICULOS AUTOMOTORES "]
[null,null,1807,null,null,null,"FABRICACION DE VIDRIO Y PRODUCTOS DE VIDRIO "]
[null,null,1806,null,null,null,"FERRETERIA "]
[null,null,1805,null,null,null,"FRIGORIFICO Y CARNICERIA "]
[null,null,1804,null,null,null,"FUERZAS ARMADAS "]
[null,null,1803,null,null,null,"GALERIA DE ARTE "]
[null,null,1802,null,null,null,"GANADO "]
[null,null,1801,null,null,null,"GANADO DE CARNE "]
[null,null,1800,null,null,null,"GANADO DE LECHE "]
[null,null,1799,null,null,null,"GASOLINERA "]
[null,null,1798,null,null,null,"GENERACION, CAPTACION Y DISTRIBUCION DE ENERGIA ELECTRICA "]
[null,null,1797,null,null,null,"GREMIO SECTORIAL "]
[null,null,1796,null,null,null,"HERRAMIENTAS Y ARTICULOS DE FERRETERIA "]
[null,null,1795,null,null,null,"HILADOS, TEJIDOS Y ACABADOS "]
[null,null,1794,null,null,null,"HORMIGON "]
[null,null,1793,null,null,null,"HOSTERIA Y CABAÑAS "]
[null,null,1792,null,null,null,"HOTEL "]
[null,null,1791,null,null,null,"IMPRENTAS "]
[null,null,1790,null,null,null,"INDUSTRIA DE ACERO (FABRICACION Y COMERCIO DE PLANCHAS, BARRAS, VARILLAS, TUBERIA, ALAMBRE, ETC.) "]
[null,null,1789,null,null,null,"INDUSTRIA DE HIERRO (PRODUCTOS DE FUNDICION, VARILLAS, PIEZAS FORJADAS, ETC.)  "]
[null,null,1788,null,null,null,"INDUSTRIAL (GALPONES, PARQUES INDUSTRIALES, ETC.) "]
[null,null,1787,null,null,null,"INSTALACIONES DEPORTIVAS "]
[null,null,1786,null,null,null,"INSTALACIONES MEDICAS "]
[null,null,1785,null,null,null,"INSTITUCIONES DE BENEFICIENCIA "]
[null,null,1784,null,null,null,"INSTITUCIONES RELIGIOSAS "]
[null,null,1783,null,null,null,"INSUMOS AGRICOLAS Y FERTILIZANTES C "]
[null,null,1782,null,null,null,"INVESTIGACION Y DESARROLLO CIENTIFICO "]
[null,null,1781,null,null,null,"JARDIN BOTANICO Y ZOOLOGICO "]
[null,null,1780,null,null,null,"JOYERIA Y RELOJERIA "]
[null,null,1779,null,null,null,"JUGUETES "]
[null,null,1778,null,null,null,"LABORATORIO CLINICO "]
[null,null,1777,null,null,null,"LABORATORIOS DE REVELADO "]
[null,null,1776,null,null,null,"LAVANDERIA ROPA "]
[null,null,1775,null,null,null,"LEVADURAS "]
[null,null,1774,null,null,null,"LIBRERIA "]
[null,null,1773,null,null,null,"LICORERIA Y TABACO "]
[null,null,1772,null,null,null,"LLANTAS "]
[null,null,1771,null,null,null,"LLANTAS Y TUBOS (INCLUYE REENCAUCHADO) "]
[null,null,1770,null,null,null,"LUBRICADORA Y LAVADORA DE VEHICULOS "]
[null,null,1769,null,null,null,"LUBRICANTES "]
[null,null,1768,null,null,null,"MAQUINARIA Y EQUIPO INDUSTRIAL "]
[null,null,{"$f":"C269-1","v":1767},null,null,null,"MAQUINARIA Y HERRAMIENTAS AGRICOLAS "]
[null,null,1766,null,null,null,"MARMOL (EXPLOTACION E INDUSTRIA) "]
[null,null,1765,null,null,null,"MATERIAL DE CALZADO "]
[null,null,1764,null,null,null,"MATERIAL ELECTRICO "]
[null,null,1763,null,null,null,"MATERIAL, EQUIPO Y ACABADOS DE CONSTRUCCION "]
[null,null,1762,null,null,null,"MEDICINA PREPAGADA "]
[null,null,1761,null,null,null,"MOTOCICLETAS Y BICICLETAS "]
[null,null,1760,null,null,null,"MUEBLES "]
[null,null,1759,null,null,null,"MUEBLES Y ACCESORIOS "]
[null,null,1758,null,null,null,"OBRAS DE INFRAESTRUCTURA NO ESPECIFICADAS "]
[null,null,1757,null,null,null,"OFICINAS "]
[null,null,1756,null,null,null,"OPTICA "]
[null,null,1755,null,null,null,"OTRAS ACTIVIDADES PROFESIONALES, CIENTIFICAS Y TECNICAS "]
[null,null,1754,null,null,null,"OTRAS ASOCIACIONES Y ORGANIZACIONES "]
[null,null,1753,null,null,null,"OTRAS INDUSTRIAS MANUFACTURERAS NCP "]
[null,null,1752,null,null,null,"OTRO TIPO DE EMPRESAS COMERCIALES "]
[null,null,1751,null,null,null,"OTROS MINERALES "]
[null,null,1750,null,null,null,"OTROS PESCA DE ALTURA "]
[null,null,1749,null,null,null,"OTROS PESCA DE MAR "]
[null,null,1748,null,null,null,"OTROS PRODUCTOS ALIMENTICIOS "]
[null,null,1747,null,null,null,"OTROS PRODUCTOS CERAMICOS Y PORCELANA "]
[null,null,1746,null,null,null,"OTROS PRODUCTOS DE CAUCHO (INCLUYE VULCANIZADO) "]
[null,null,1745,null,null,null,"OTROS PRODUCTOS METALICOS "]
[null,null,1744,null,null,null,"OTROS PRODUCTOS METALICOS PARA CONSTRUCCION "]
[null,null,1743,null,null,null,"OTROS PRODUCTOS QUIMICOS "]
[null,null,1742,null,null,null,"OTROS PRODUCTOS TEXTILES "]
[null,null,1741,null,null,null,"OTROS SERVICIOS DE COMUNICACION "]
[null,null,1740,null,null,null,"OTROS SERVICIOS DE DIVERSION Y CULTURALES "]
[null,null,1739,null,null,null,"OTROS SERVICIOS DE EDUCACION "]
[null,null,1738,null,null,null,"OTROS SERVICIOS DE TRANSPORTE (INCLUYE CARGA Y DESCARGA, ESTACIONES DE MANIPULACION, MANTENIMIENTO Y ASISTENCIA EN CARRETERAS). "]
[null,null,1737,null,null,null,"OTROS SERVICIOS FINANCIEROS "]
[null,null,1736,null,null,null,"OTROS SERVICIOS HOTELEROS "]
[null,null,1735,null,null,null,"OTROS SERVICIOS PERSONALES "]
[null,null,1734,null,null,null,"OTROS SERVICIOS PRESTADOS "]
[null,null,1733,null,null,null,"PAPEL (INCLUIDOS SUS DERIVADOS) "]
[null,null,1732,null,null,null,"PARQUE DE DIVERSION Y JUEGOS ELECTRONICOS "]
[null,null,1731,null,null,null,"PARQUEADEROS "]
[null,null,1730,null,null,null,"PERIODICOS Y REVISTAS "]
[null,null,1729,null,null,null,"PESCA COMERCIAL EXCEPTO ATUN "]
[null,null,1728,null,null,null,"PESCA DE ATUN "]
[null,null,1727,null,null,null,"PLAZA DE TOROS "]
[null,null,1726,null,null,null,"POLLOS Y HUEVOS "]
[null,null,1725,null,null,null,"PRODUCCION DE ARROZ (PILADO, BLANQUEADO Y PULIDO) "]
[null,null,1724,null,null,null,"PRODUCCION DE GAS COMBUSTIBLE "]
[null,null,1723,null,null,null,"PRODUCCION DE HARINA DE PESCADO COMESTIBLE "]
[null,null,1722,null,null,null,"PRODUCCION DE HARINAS VEGETALES, SEMOLAS, ALMIDONES Y OTROS PRODUCTOS: GLUCOSA (DEXTROSA) Y JARABE DE GLUCOSA, FRUCTOSA Y OTROS JARABES DEL AZUCAR "]
[null,null,1721,null,null,null,"PRODUCCION DE HUEVOS "]
[null,null,1720,null,null,null,"PRODUCCION DE LANA "]
[null,null,1719,null,null,null,"PRODUCCION DE LECHE CRUDA O FRESCA DE CUALQUIER TIPO "]
[null,null,1718,null,null,null,"PRODUCCION DE OTROS PRODUCTOS COMESTIBLES DE ANIMALES  "]
[null,null,1717,null,null,null,"PRODUCCION DE OTROS PRODUCTOS DE ANIMALES NCP "]
[null,null,1716,null,null,null,"PRODUCCION, PROCESAMIENTO Y CONSERVACION DE CARNE Y PRODUCTOS CARNICOS "]
[null,null,1715,null,null,null,"PRODUCTOS AGRICOLAS "]
[null,null,1714,null,null,null,"PRODUCTOS ALUMINIO PARA CONSTRUCCION "]
[null,null,1713,null,null,null,"PRODUCTOS CERAMICOS PARA CONSTRUCCION (SANITARIOS, BALDOSAS, ETC.) "]
[null,null,1712,null,null,null,"PRODUCTOS DE CAUCHO "]
[null,null,1711,null,null,null,"PRODUCTOS DE CUERO "]
[null,null,1710,null,null,null,"PRODUCTOS DE MAR "]
[null,null,1709,null,null,null,"PRODUCTOS PLASTICOS "]
[null,null,1708,null,null,null,"PRODUCTOS QUIMICOS "]
[null,null,1707,null,null,null,"PRODUCTOS QUIMICOS INDUSTRIALES "]
[null,null,1706,null,null,null,"PUBLICIDAD E INVESTIGACION DE MERCADOS "]
[null,null,1705,null,null,null,"RECOLECCION DE PRODUCTOS FORESTALES DIFERENTES A LA MADERA "]
[null,null,1704,null,null,null,"REFINACION PETROLEO "]
[null,null,{"$f":"C333-1","v":1703},null,null,null,"REPARACION DE COMPUTADORAS Y ENSERES DE USO PERSONAL O DOMESTICO "]
[null,null,1702,null,null,null,"RESINAS Y FIBRAS ARTIFICIALES "]
[null,null,1701,null,null,null,"SAL (EXPLOTACION E INDUSTRIA) "]
[null,null,1700,null,null,null,"SALON DE BELLEZA Y PELUQUERIA "]
[null,null,1699,null,null,null,"SALON DE RECEPCIONES "]
[null,null,1698,null,null,null,"SECTOR PUBLICO "]
[null,null,1697,null,null,null,"SERVICIO DE COBRANZAS "]
[null,null,1696,null,null,null,"SERVICIO DE FUMIGACION "]
[null,null,1695,null,null,null,"SERVICIO DE LIMPIEZA Y DESINFECCION "]
[null,null,1694,null,null,null,"SERVICIOS CONTABLES "]
[null,null,1693,null,null,null,"SERVICIOS CREDITICIOS "]
[null,null,1692,null,null,null,"SERVICIOS DE ALIMENTOS, BEBIDAS Y OTROS SERVICIOS DE COMIDAS MOVILES "]
[null,null,1691,null,null,null,"SERVICIOS DE APOYO A LA SILVICULTURA "]
[null,null,1690,null,null,null,"SERVICIOS DE CONCESION DE LICENCIAS PARA EL DERECHO DE USO DE ACTIVOS INTANGIBLES "]
[null,null,1689,null,null,null,"SERVICIOS DE INFORMATICA Y SERVICIOS CONEXOS "]
[null,null,1688,null,null,null,"SERVICIOS DE MANTENIMIENTO ELECTRICO Y SANITARIO "]
[null,null,1687,null,null,null,"SERVICIOS DE REPARACION E INSTALACION DE MAQUINARIA Y EQUIPO "]
[null,null,1686,null,null,null,"SERVICIOS DE REPARACION Y MANTENIMIENTO DE VEHICULOS DE MOTOR Y MOTOCICLETAS "]
[null,null,1685,null,null,null,"SERVICIOS MUNICIPALES "]
[null,null,1684,null,null,null,"SERVICIOS RELACIONADOS CON LA AGRICULTURA "]
[null,null,1683,null,null,null,"SERVICIOS RELACIONADOS CON LA MINERIA (EXCEPTO PETROLEO) "]
[null,null,1682,null,null,null,"SERVICIOS RELACIONADOS CON PESCA  "]
[null,null,1681,null,null,null,"SINDICATO LABORAL Y COMITE DE EMPRESA "]
[null,null,1680,null,null,null,"SISTEMA DE AGUA POTABLE Y ALCANTARILLADO "]
[null,null,1679,null,null,null,"SNACKS "]
[null,null,1678,null,null,null,"SUPERMERCADO "]
[null,null,1677,null,null,null,"TALLER DE REPARACION DE CALZADO Y OTROS ARTICULOS DE CUERO "]
[null,null,1676,null,null,null,"TELAS, ALFOMBRAS, TAPICES Y OTROS TEXTILES "]
[null,null,1675,null,null,null,"TELEFONIA (INCLUYE CELULAR) "]
[null,null,1674,null,null,null,"TERMINACION EDIFICIOS (INCLUYE ENLUCIDO, ESTUCO, INSTALACION PUERTAS, DECORACION INTERIOR Y EXTERIOR). "]
[null,null,1673,null,null,null,"TIENDA NATURISTA "]
[null,null,1672,null,null,null,"TRANSPORTE DE CARGA POR VIA ACUATICA "]
[null,null,1671,null,null,null,"TRANSPORTE DE CARGA POR VIA AEREA "]
[null,null,1670,null,null,null,"TRANSPORTE DE CARGA POR VIA TERRESTRE "]
[null,null,1669,null,null,null,"TRANSPORTE DE PASAJEROS POR VIA ACUATICA "]
[null,null,1668,null,null,null,"TRANSPORTE DE PASAJEROS POR VIA AEREA "]
[null,null,1667,null,null,null,"TRANSPORTE DE VALORES "]
[null,null,1666,null,null,null,"TRANSPORTE PASAJEROS INTERPROVINCIAL "]
[null,null,1665,null,null,null,"TRANSPORTE PASAJEROS TAXI URBANO "]
[null,null,1664,null,null,null,"TRANSPORTE TERRESTRE PARA TURISMO "]
[null,null,1663,null,null,null,"TRANSPORTE URBANO "]
[null,null,1662,null,null,null,"TV CABLE "]
[null,null,1661,null,null,null,"URBANIZACION "]
[null,null,1660,null,null,null,"VEHICULOS (REPUESTOS, AUTOPARTES Y ACCESORIOS) "]
[null,null,1659,null,null,null,"VIAL (CARRETERAS, PUENTES, ETC.) "]
[null,null,1658,null,null,null,"VIVERES Y ABARROTES (AL POR MENOR) "]
[null,null,1657,null,null,null,"VIVIENDA (CASAS Y DEPARTAMENTOS) "]
[null,null,1656]
[null,null,1655]
[null,null,1654]
[null,null,1653]
[null,null,1652]
[null,null,1651]
[null,null,1650]
[null,null,1649]
[null,null,1648]